fUST/lending_fUST_20240512
["ID","MTS","AMOUNT","RATE_DAILY","PERIOD"]
[326821243,1715443831908,-205.010109,0.00018532,2]
[326821245,1715443831917,-2382.35649461,0.00018842,2]
[326821247,1715443831927,-2631.19780464,0.00018843,2]
[326821249,1715443831936,-189.69444695,0.00018843,2]
[326821250,1715443831945,-3000.0,0.00018846,2]
[326821252,1715443831954,-24900.0,0.00019588,2]
[326821254,1715443831963,-414.49550333,0.00019697,2]
[326821257,1715443831972,-500.0,0.00019999,2]
[326821260,1715443831981,-500.0,0.00019999,2]
[326821262,1715443831991,-500.0,0.00019999,2]
[326821265,1715443832000,-500.0,0.00019999,2]
[326821267,1715443832010,-500.0,0.00019999,2]
[326821270,1715443832019,-500.0,0.00019999,2]
[326821273,1715443832028,-500.0,0.00019999,2]
[326821274,1715443832037,-500.0,0.00019999,2]
[326821275,1715443832047,-500.0,0.00019999,2]
[326821276,1715443832056,-500.0,0.00019999,2]
[326821277,1715443832066,-500.0,0.00019999,2]
[326821278,1715443832075,-500.0,0.00019999,2]
[326821279,1715443832084,-500.0,0.00019999,2]
[326821280,1715443832094,-500.0,0.00019999,2]
[326821281,1715443832103,-500.0,0.00019999,2]
[326821282,1715443832112,-500.0,0.00019999,2]
[326821283,1715443832121,-500.0,0.00019999,2]
[326821284,1715443832131,-500.0,0.00019999,2]
[326821285,1715443832140,-500.0,0.00019999,2]
[326821286,1715443832149,-500.0,0.00019999,2]
[326821287,1715443832158,-500.0,0.00019999,2]
[326821288,1715443832167,-500.0,0.00019999,2]
[326821289,1715443832176,-500.0,0.00019999,2]
[326821290,1715443832186,-500.0,0.00019999,2]
[326821291,1715443832195,-535.30106266,0.00019999,2]
[326821292,1715443832205,-500.0,0.00019999,2]
[326821293,1715443832217,-500.0,0.00019999,2]
[326821294,1715443832226,-500.0,0.00019999,2]
[326821295,1715443832235,-500.0,0.00019999,2]
[326821296,1715443832244,-500.0,0.00019999,2]
[326821297,1715443832255,-500.0,0.00019999,2]
[326821298,1715443832267,-500.0,0.00019999,2]
[326821299,1715443832276,-500.0,0.00019999,2]
[326821300,1715443832285,-500.0,0.00019999,2]
[326821301,1715443832298,-500.0,0.00019999,2]
[326821302,1715443832308,-500.0,0.00019999,2]
[326821303,1715443832317,-500.0,0.00019999,2]
[326821304,1715443832326,-500.0,0.00019999,2]
[326821305,1715443832335,-500.0,0.00019999,2]
[326821306,1715443832344,-2012.10118066,0.0002,2]
[326821307,1715443832353,-35280.27021186,0.0002,2]
[326821316,1715443837935,-2891.21320077,0.0002,2]
[326821428,1715443997748,9260.9689547,0.00015125,2]
[326821429,1715444037978,154.75239617,0.00015125,2]
[326821430,1715444040398,2087.44057429,0.00015125,2]
[326821431,1715444043874,2709.70286839,0.00015125,2]
[326821432,1715444049471,154.75239617,0.00015125,2]
[326821433,1715444053964,155.55196756,0.00015125,2]
[326821434,1715444054381,2087.44057429,0.00015125,2]
[326821435,1715444059876,2709.70286839,0.00015125,2]
[326821437,1715444067544,196.5994572,0.00015125,2]
[326821438,1715444072390,1741.32329894,0.00015125,2]
[326821439,1715444077878,2709.70286839,0.00015125,2]
[326821440,1715444097885,2709.70286839,0.00015125,2]
[326821442,1715444113876,2709.70286839,0.00015125,2]
[326821445,1715444131884,2709.70286839,0.00015125,2]
[326821448,1715444151888,2709.70286839,0.00015125,2]
[326821449,1715444169891,2709.70286839,0.00015125,2]
[326821451,1715444187894,2655.22454593,0.00015125,2]
[326821498,1715444472829,1588.23766308,9.999e-05,2]
[326821791,1715445046306,-189.69444695,0.00018,2]
[326821792,1715445046315,-92.80555305,0.0001933,2]
[326821793,1715445046325,-261.81,0.0001933,2]
[326821794,1715445046406,-2107.46891467,0.0001933,2]
[326821795,1715445046415,-1323.5313859,0.0001933,2]
[326821796,1715445046424,-3430.9647065,0.00019331,2]
[326821797,1715445046433,-8696.61179911,0.00019569,2]
[326821864,1715445920993,689.55985205,9.999e-05,2]
[326821900,1715446232481,-189.69444695,0.00019234,2]
[326821901,1715446232490,-689.55985205,0.00019234,2]
[326821902,1715446232499,-1709.4519652,0.00019235,2]
[326821903,1715446232508,-208.42845868,0.00019238,2]
[326821904,1715446232518,-1166.22032007,0.00019569,2]
[326821905,1715446232527,-9304.3854728,0.0001988,2]
[326821906,1715446232537,-418.69524881,0.00019999,2]
[326821907,1715446232548,-2012.10118066,0.0002081,2]
[326821908,1715446232558,-188.85463441,0.00020811,2]
[326821909,1715446232567,-533.76586333,0.00020811,2]
[326821910,1715446232576,-5827.61517915,0.00020902,7]
[326821911,1715446232585,-891.82,0.00020902,3]
[326821912,1715446232595,-718.89573392,0.0002091,2]
[326821913,1715446232604,-204.94636995,0.0002091,2]
[326821914,1715446232613,-299.84700718,0.0002091,2]
[326821915,1715446232623,-1679.73219039,0.0002091,2]
[326821916,1715446232632,-651.99606377,0.0002091,2]
[326821917,1715446232641,-380.53498249,0.0002091,2]
[326821918,1715446232650,-2461.00167912,0.0002091,2]
[326821919,1715446232660,-294.51792014,0.0002091,2]
[326821920,1715446232670,-158.38524908,0.0002091,2]
[326821921,1715446232679,-409.82935884,0.0002091,2]
[326821922,1715446232688,-14908.73826812,0.00020911,2]
[326821945,1715446238608,-722.60988728,0.00020911,2]
[326822212,1715447348663,689.55985205,9.999e-05,2]
[326822215,1715447431764,-689.55985205,0.00019633,2]
[326822216,1715447431774,-189.69444695,0.00019634,2]
[326822217,1715447431783,-166.39424,0.00019635,2]
[326822218,1715447431792,-154.79876161,0.00019863,2]
[326822219,1715447431801,-2012.10118066,0.0002,2]
[326822220,1715447431810,-833.42845868,0.00020555,2]
[326822221,1715447431819,-159.05332718,0.00020701,2]
[326822222,1715447431828,-365.35670275,0.00020811,2]
[326822223,1715447431837,-225.18673014,0.00020909,7]
[326822224,1715447431846,-890.67521582,0.00020909,2]
[326822225,1715447431855,-1092.09177518,0.00020909,2]
[326822226,1715447431864,-154.91736314,0.00020909,2]
[326822227,1715447431875,-1351.7263104,0.00020909,2]
[326822228,1715447431884,-1157.9324208,0.00020909,2]
[326822229,1715447431893,-314.98827974,0.0002091,2]
[326822230,1715447431903,-2913.80758958,0.0002091,7]
[326822231,1715447431912,-36875.95659066,0.00020911,2]
[326822232,1715447431921,-500.0,0.00020911,2]
[326822233,1715447431930,-500.0,0.00020911,2]
[326822234,1715447431940,-453.53010626,0.00020911,2]
[326822235,1715447431949,-500.0,0.00020911,2]
[326822236,1715447431958,-10623.08099601,0.00020911,2]
[326822237,1715447431967,-231.87892011,0.00020912,2]
[326822519,1715447437825,-378.76003902,0.00020912,2]
[326822539,1715447443330,-159.05332718,0.00020702,2]
[326822540,1715447443339,-139.79998431,0.00020912,2]
[326822561,1715448505854,689.55985205,9.999e-05,2]
[326822696,1715448640306,-250.1865,0.00017999,2]
[326822891,1715449314430,689.55985205,9.999e-05,2]
[326822892,1715449388163,1000.0,9.999e-05,2]
[326822936,1715449832388,-689.55985205,0.00017995,2]
[326822938,1715449832397,-1000.0,0.00017996,2]
[326822940,1715449832411,-9387.04651107,0.00017996,2]
[326822942,1715449832421,-189.69444695,0.00018,2]
[326822944,1715449832430,-310.7303785,0.00019624,2]
[326822946,1715449832440,-2012.10118066,0.00020811,2]
[326822948,1715449832451,-441.95096038,0.00020812,2]
[326822950,1715449832460,-536.12771427,0.00020812,2]
[326822952,1715449832470,-151.08,0.00020892,2]
[326822954,1715449832480,-793.36,0.00020903,3]
[326822956,1715449832491,-409.82935884,0.0002091,2]
[326822957,1715449832500,-2629.7346868,0.0002091,2]
[326822958,1715449832509,-2902.72511672,0.0002091,2]
[326822959,1715449832518,-1336.61268754,0.00020911,2]
[326822960,1715449832528,-20941.06962691,0.00020912,2]
[326823407,1715450553284,2003.02625182,9.999e-05,2]
[326823422,1715450764140,689.55985205,9.999e-05,2]
[326823521,1715450865867,1000.0,9.999e-05,2]
[326823953,1715451465784,689.55985205,9.999e-05,2]
[326823954,1715451652527,1000.0,9.999e-05,2]
[326824012,1715452078813,689.55985205,9.999e-05,2]
[326824063,1715452232265,-189.69444695,0.00018,2]
[326824066,1715452232275,-1000.0,0.00018418,2]
[326824070,1715452232284,-689.55985205,0.00018419,2]
[326824073,1715452232294,-1778.0175846,0.00018421,2]
[326824076,1715452232303,-155.63834252,0.00018753,2]
[326824078,1715452232312,-604.91506677,0.0001989,2]
[326824081,1715452232322,-391.33169517,0.0001989,2]
[326824084,1715452232331,-225.18673014,0.00019897,7]
[326824086,1715452232340,-890.67521582,0.00019897,2]
[326824088,1715452232349,-1092.09177518,0.00019897,2]
[326824090,1715452232359,-154.91736314,0.00019897,2]
[326824093,1715452232368,-1351.7263104,0.00019897,2]
[326824097,1715452232378,-314.98827974,0.00019898,2]
[326824100,1715452232387,-43845.85008288,0.00019899,2]
[326824102,1715452232397,-891.82,0.0001999,3]
[326824105,1715452232406,-151.0,0.00019999,2]
[326824108,1715452232415,-166.812584,0.00019999,2]
[326824111,1715452232424,-151.0,0.00019999,2]
[326824114,1715452232437,-151.0,0.00019999,2]
[326824117,1715452232447,-151.0,0.00019999,2]
[326824120,1715452232456,-151.0,0.00019999,2]
[326824123,1715452232466,-151.0,0.00019999,2]
[326824126,1715452232475,-151.0,0.00019999,2]
[326824129,1715452232484,-151.0,0.00019999,2]
[326824132,1715452232493,-151.0,0.00019999,2]
[326824135,1715452232503,-151.0,0.00019999,2]
[326824137,1715452232514,-187.84309,0.00019999,2]
[326824139,1715452232524,-152.757917,0.00019999,2]
[326824141,1715452232533,-151.0,0.00019999,2]
[326824143,1715452232543,-155.951997,0.00019999,2]
[326824144,1715452232552,-151.0,0.00019999,2]
[326824145,1715452232561,-151.0,0.00019999,2]
[326824146,1715452232570,-500.0,0.00019999,2]
[326824147,1715452232579,-500.0,0.00019999,2]
[326824148,1715452232588,-500.0,0.00019999,2]
[326824149,1715452232597,-500.0,0.00019999,2]
[326824150,1715452232606,-500.0,0.00019999,2]
[326824151,1715452232616,-553.53010626,0.00019999,2]
[326824152,1715452232625,-500.0,0.00019999,2]
[326824153,1715452232634,-500.0,0.00019999,2]
[326824154,1715452232643,-500.0,0.00019999,2]
[326824155,1715452232652,-500.0,0.00019999,2]
[326824156,1715452232661,-500.0,0.00019999,2]
[326824158,1715452232670,-500.0,0.00019999,2]
[326824159,1715452232679,-500.0,0.00019999,2]
[326824160,1715452232688,-500.0,0.00019999,2]
[326824161,1715452232698,-500.0,0.00019999,2]
[326824162,1715452232707,-500.0,0.00019999,2]
[326824163,1715452232716,-500.0,0.00019999,2]
[326824164,1715452232725,-500.0,0.00019999,2]
[326824165,1715452232734,-500.0,0.00019999,2]
[326824166,1715452232743,-500.0,0.00019999,2]
[326824167,1715452232752,-50189.00847998,0.0002,2]
[326824168,1715452232761,-2012.10118066,0.0002,2]
[326824169,1715452232770,-203.833542,0.0002,2]
[326824170,1715452232779,-391.33169517,0.00020392,2]
[326824171,1715452232788,-391.33169517,0.00020894,2]
[326824172,1715452232797,-178.5,0.000209,2]
[326824173,1715452232807,-301.59845587,0.0002091,2]
[326824174,1715452232816,-163.71452413,0.0002091,2]
[326824175,1715452232826,-162.71094643,0.0002091,2]
[326824176,1715452232835,-718.89573392,0.0002091,2]
[326824177,1715452232844,-204.94636995,0.0002091,2]
[326824178,1715452232853,-299.84700718,0.0002091,2]
[326824179,1715452232863,-1679.73219039,0.0002091,2]
[326824180,1715452232872,-380.53498249,0.0002091,2]
[326824181,1715452232881,-2461.00167912,0.0002091,2]
[326824182,1715452232891,-294.51792014,0.0002091,2]
[326824183,1715452232900,-158.38524908,0.0002091,2]
[326824184,1715452232910,-409.82935884,0.0002091,2]
[326824185,1715452232919,-816.36499796,0.0002091,2]
[326824186,1715452232929,-151.0,0.0002091,2]
[326824187,1715452232938,-151.0,0.0002091,2]
[326824188,1715452232947,-4050.57331481,0.00020911,2]
[326824244,1715452238120,-500.0,0.00019999,2]
[326824246,1715452238130,-617.0589007,0.00019999,2]
[326824248,1715452238140,-409.23025382,0.00020911,2]
[326824250,1715452238149,-6853.16748233,0.00020912,2]
[326824252,1715452238157,-391.33169517,0.00021396,2]
[326824254,1715452238167,-391.33169517,0.00021898,2]
[326824256,1715452238175,-205.3106177,0.00021918,2]
[326824258,1715452238185,-166.666666,0.00021918,2]
[326824260,1715452238194,-8970.5531796,0.00021918,2]
[326824262,1715452238203,-66140.26636829,0.00021998,7]
[326824264,1715452238211,-1820.36965712,0.00021998,2]
[326824309,1715452246244,-2012.10118066,0.0002,2]
[326824310,1715452246254,-356.02994283,0.00020913,2]
[326824311,1715452246263,-159.05332718,0.00021778,2]
[326824312,1715452246272,-2149.50461648,0.00021998,2]
[326824313,1715452246281,-5230.59288808,0.00022,2]
[326824314,1715452246290,-166.666666,0.00022431,2]
[326824315,1715452246300,-166.666666,0.00022944,2]
[326824316,1715452246309,-715.10955557,0.00023,2]
[326824317,1715452246319,-10000.0,0.00023428,2]
[326824318,1715452246328,-166.666666,0.00023456,2]
[326824319,1715452246338,-177.975299,0.00023562,2]
[326824320,1715452246347,-157.755143,0.00023562,2]
[326824321,1715452246356,-173.313665,0.00023562,2]
[326824322,1715452246366,-333.046782,0.00023562,2]
[326824323,1715452246375,-166.666666,0.00023969,2]
[326824324,1715452246384,-166.666666,0.00024482,2]
[326824325,1715452246393,-160.0,0.00025,2]
[326824326,1715452246402,-3000.0,0.000266,2]
[326824327,1715452246411,-3000.0,0.000266,2]
[326824328,1715452246421,-3000.0,0.000266,2]
[326824329,1715452246434,-301.90339255,0.0002739,2]
[326824330,1715452246443,-604.91506675,0.00028306,2]
[326824331,1715452246453,-153.0,0.00029315,2]
[326824332,1715452246462,-333.046782,0.00029531,2]
[326824333,1715452246472,-160.0,0.0003,2]
[326824334,1715452246482,-412.8053278,0.00030904,2]
[326824335,1715452246491,-157.755143,0.00031123,2]
[326824336,1715452246500,-306.6742854,0.00032485,2]
[326824337,1715452246512,-987.97579698,0.000337,2]
[326824338,1715452246522,-13967.30645586,0.00034,2]
[326824339,1715452246531,-1000.0,0.00034,34]
[326824340,1715452246541,-44826.58117701,0.0003423,5]
[326824341,1715452246551,-10000.0,0.0003443,2]
[326824342,1715452246560,-315.07707204,0.00034649,10]
[326824343,1715452246570,-9904.0009901,0.0003465,2]
[326824344,1715452246579,-1000.0,0.0003474,2]
[326824345,1715452246588,-1000.0,0.00034746,2]
[326824346,1715452246597,-1000.0,0.00034841,2]
[326824347,1715452246607,-54916.28663315,0.0003488,2]
[326824378,1715452617259,4909.92892707,0.000125,2]
[326824394,1715453067209,1000.0,9.999e-05,2]
[326824642,1715453479088,1448.69849891,0.0001,2]
[326824664,1715453730306,1000.0,9.999e-05,2]
[326824710,1715454068055,833.42845868,0.00012261,2]
[326824726,1715454365406,1000.0,9.999e-05,2]
[326824754,1715454573471,10339.94119119,0.00026,120]
[326824796,1715454632936,-1000.0,0.00017999,2]
[326824797,1715454632945,-189.69444695,0.00019999,2]
[326824798,1715454632955,-10827.61517915,0.0002,7]
[326824799,1715454632965,-10623.08099601,0.0002,2]
[326824800,1715454632974,-2012.10118066,0.0002,2]
[326824801,1715454632983,-520.70226439,0.00020811,2]
[326824802,1715454632992,-161.46153265,0.00020811,2]
[326824803,1715454633001,-891.0382113,0.00020911,2]
[326824805,1715454633011,-1336.61268754,0.00020911,2]
[326824806,1715454633020,-409.82935884,0.00020911,2]
[326824808,1715454633029,-527.63757821,0.00020911,2]
[326824809,1715454633038,-2629.7346868,0.00020911,2]
[326824811,1715454633048,-2902.72511672,0.00020911,2]
[326824813,1715454633057,-1400.34943424,0.00020911,2]
[326824815,1715454633066,-1157.9324208,0.00020912,2]
[326824817,1715454633075,-11169.55792794,0.00020912,2]
[326824990,1715454644186,-793.36,0.00020903,3]
[326824991,1715454644196,-9771.51169897,0.00020912,2]
[326824992,1715454644205,-500.0,0.00020913,2]
[326824993,1715454644215,-500.0,0.00020913,2]
[326824994,1715454644225,-500.0,0.00020913,2]
[326824995,1715454644235,-500.0,0.00020913,2]
[326824996,1715454644244,-500.0,0.00020913,2]
[326824997,1715454644253,-500.0,0.00020913,2]
[326824998,1715454644263,-500.0,0.00020913,2]
[326824999,1715454644279,-550.0,0.00020913,2]
[326825000,1715454644288,-500.0,0.00020913,2]
[326825001,1715454644298,-500.0,0.00020913,2]
[326825002,1715454644307,-500.0,0.00020913,2]
[326825003,1715454644318,-500.0,0.00020913,2]
[326825004,1715454644327,-500.0,0.00020913,2]
[326825005,1715454644337,-500.0,0.00020913,2]
[326825006,1715454644349,-500.0,0.00020913,2]
[326825007,1715454644359,-500.0,0.00020913,2]
[326825008,1715454644368,-500.0,0.00020913,2]
[326825009,1715454644378,-500.0,0.00020913,2]
[326825010,1715454644387,-500.0,0.00020913,2]
[326825011,1715454644397,-500.0,0.00020913,2]
[326825012,1715454644406,-500.0,0.00020913,2]
[326825013,1715454644415,-36875.95659066,0.00020913,2]
[326825014,1715454644424,-225.0,0.00021918,2]
[326825015,1715454644434,-166.666666,0.00021918,2]
[326825016,1715454644444,-5230.59288808,0.00022,2]
[326825017,1715454644453,-166.666666,0.00022431,2]
[326825018,1715454644463,-166.666666,0.00022944,2]
[326825019,1715454644471,-715.10955557,0.00023,2]
[326825020,1715454644481,-166.666666,0.00023456,2]
[326825021,1715454644490,-177.975299,0.00023562,2]
[326825022,1715454644499,-157.755143,0.00023562,2]
[326825023,1715454644508,-166.666666,0.00023969,2]
[326825024,1715454644518,-161.46153262,0.00024196,2]
[326825025,1715454644527,-166.666666,0.00024482,2]
[326825026,1715454644536,-168.01582789,0.00025,2]
[326825027,1715454644545,-3969.8742736,0.00026,2]
[326825028,1715454644554,-758.10276031,0.00026,2]
[326825029,1715454644564,-154.75239617,0.0002739,2]
[326825030,1715454644573,-161.46153262,0.00027581,2]
[326825031,1715454644582,-5000.0,0.0003,30]
[326825032,1715454644592,-7493.61838699,0.0003,2]
[326825033,1715454644603,-161.46153262,0.00030966,2]
[326825034,1715454644612,-5000.0,0.00031,30]
[326825035,1715454644622,-157.755143,0.00032287,2]
[326825036,1715454644631,-152.0,0.00033,60]
[326825037,1715454644640,-5000.0,0.00033,31]
[326825038,1715454644650,-1000.0,0.00034,34]
[326825039,1715454644660,-161.46153262,0.00034351,2]
[326825040,1715454644669,-153.0,0.00034363,2]
[326825041,1715454644678,-153.0,0.00034363,2]
[326825042,1715454644687,-153.0,0.00034363,2]
[326825043,1715454644696,-153.0,0.00034363,2]
[326825044,1715454644705,-97978.12800579,0.00034431,7]
[326825045,1715454644715,-159.05332718,0.00034531,3]
[326825046,1715454644724,-9904.0009901,0.00034531,2]
[326825047,1715454644733,-15819.67427752,0.000346,30]
[326825048,1715454644742,-1000.0,0.00034645,2]
[326825049,1715454644751,-1000.0,0.00034657,2]
[326825050,1715454644760,-388.54539031,0.00034668,2]
[326825051,1715454644769,-1000.0,0.00034695,2]
[326825052,1715454644779,-1000.0,0.00034739,2]
[326825053,1715454644787,-1000.0,0.00034794,2]
[326825054,1715454644796,-151.0,0.000348,11]
[326825055,1715454644805,-160.0,0.000348,11]
[326825056,1715454644814,-1000.0,0.00034855,2]
[326825057,1715454644823,-18212.50401105,0.0003488,2]
[326825058,1715454644831,-1000.0,0.00034886,2]
[326825059,1715454644840,-16295.92491197,0.00034887,5]
[326825060,1715454644850,-2000.0,0.00034899,2]
[326825061,1715454644859,-306.0,0.00034911,2]
[326825062,1715454644868,-280.5464271,0.00034911,2]
[326825063,1715454644877,-271.1520628,0.00034911,2]
[326825064,1715454644886,-457.4626375,0.00034911,2]
[326825065,1715454644895,-443.0936797,0.00034911,2]
[326825066,1715454644904,-153.0,0.00034911,2]
[326825067,1715454644913,-153.0,0.00034911,2]
[326825068,1715454644922,-341.77429492,0.00034986,4]
[326825069,1715454644931,-11228.70321049,0.00034987,4]
[326825070,1715454644940,-12022.49414274,0.00034996,2]
[326825171,1715455704862,1000.0,9.999e-05,2]
[326825195,1715455832073,-150.0,0.000189,2]
[326825197,1715455832083,-1000.0,0.00019399,2]
[326825199,1715455832093,-189.69444695,0.000194,2]
[326825201,1715455832102,-172.66021843,0.00019401,2]
[326825203,1715455832111,-169.629125,0.00019501,2]
[326825205,1715455832121,-3188.13525194,0.0001956,2]
[326825412,1715455843374,-1040.75398876,0.0001956,2]
[326825413,1715455843383,-154.79876161,0.00019866,2]
[326825414,1715455843393,-2012.10118066,0.00020912,2]
[326825415,1715455843403,-418.69524881,0.00020913,2]
[326825416,1715455843412,-188.966647,0.00021918,2]
[326825417,1715455843422,-4132.99121063,0.00022,2]
[326825418,1715455843431,-715.10955557,0.00023,2]
[326825419,1715455843440,-168.340322,0.00023562,2]
[326825420,1715455843450,-299.742103,0.00023562,2]
[326825421,1715455843459,-151.08,0.00023579,2]
[326825422,1715455843469,-188.966647,0.00024482,2]
[326825423,1715455843479,-299.742103,0.00029531,2]
[326825424,1715455843488,-306.0,0.00034377,2]
[326825425,1715455843498,-159.05332718,0.00034646,3]
[326825426,1715455843508,-9904.0009901,0.00034646,2]
[326825427,1715455843517,-182.8464507,0.00034895,2]
[326825428,1715455843527,-182.84645068,0.00034896,2]
[326825429,1715455843536,-182.84645068,0.00034898,2]
[326825430,1715455843545,-182.84645068,0.00034899,2]
[326825431,1715455843555,-160.0,0.000349,11]
[326825432,1715455843564,-2000.0,0.000349,2]
[326825433,1715455843573,-500.0,0.00034988,7]
[326825434,1715455843583,-500.0,0.00034988,7]
[326825435,1715455843592,-500.0,0.00034988,7]
[326825436,1715455843601,-500.0,0.00034988,7]
[326825437,1715455843610,-500.0,0.00034988,7]
[326825438,1715455843620,-586.77095639,0.00034988,7]
[326825439,1715455843629,-500.0,0.00034988,7]
[326825440,1715455843638,-500.0,0.00034988,7]
[326825441,1715455843647,-319.78686138,0.00034988,7]
[326825599,1715456674410,1000.0,9.999e-05,2]
[326825608,1715456758351,6961.17502797,9.999e-05,2]
[326825609,1715456776352,6961.17502797,9.999e-05,2]
[326825610,1715456796364,3626.77218957,9.999e-05,2]
[326825611,1715456818379,3626.77218957,9.999e-05,2]
[326825614,1715456836365,3626.77218957,9.999e-05,2]
[326825615,1715456858376,3626.77218957,9.999e-05,2]
[326825618,1715456878396,3626.77218957,9.999e-05,2]
[326825620,1715456896372,3626.77218957,9.999e-05,2]
[326825628,1715456912383,3626.77218957,9.999e-05,2]
[326825629,1715456928380,3626.77218957,9.999e-05,2]
[326825630,1715456946382,3626.77218957,9.999e-05,2]
[326825663,1715456962399,3626.77218957,9.999e-05,2]
[326825664,1715456980515,3626.77218957,9.999e-05,2]
[326825665,1715456998409,3626.77218957,9.999e-05,2]
[326825666,1715457014434,3626.77218957,9.999e-05,2]
[326825721,1715457032261,-189.69444695,0.00019157,2]
[326825723,1715457032270,-22610.8709197,0.00019158,2]
[326825725,1715457032279,-169.082181,0.00019207,2]
[326825727,1715457032288,-306.3083692,0.00019429,2]
[326825729,1715457032298,-9304.3854728,0.0001988,2]
[326825731,1715457032307,-154.75239617,0.0002,2]
[326825733,1715457032316,-2012.10118066,0.0002,2]
[326825735,1715457032325,-301.59845587,0.00020912,2]
[326825737,1715457032335,-163.71452413,0.00020912,2]
[326825739,1715457032344,-162.71094643,0.00020912,2]
[326825741,1715457032353,-1465.55583977,0.00020912,2]
[326825743,1715457032363,-718.89573392,0.00020912,2]
[326825745,1715457032372,-204.94636995,0.00020912,2]
[326825747,1715457032381,-510.43317513,0.00020912,2]
[326825749,1715457032390,-1679.73219039,0.00020912,2]
[326825751,1715457032399,-380.53498249,0.00020912,2]
[326825753,1715457032409,-2461.00167912,0.00020912,2]
[326825755,1715457032418,-294.51792014,0.00020912,2]
[326825757,1715457032427,-158.38524908,0.00020912,2]
[326825759,1715457032437,-4050.57331481,0.00020913,2]
[326825761,1715457032446,-166.666666,0.00021918,2]
[326825763,1715457032456,-166.666666,0.00022431,2]
[326825765,1715457032466,-166.666666,0.00022944,2]
[326825767,1715457032475,-159.78426332,0.00023,2]
[326825769,1715457032487,-166.666666,0.00023456,2]
[326825771,1715457032496,-177.975299,0.00023562,2]
[326825773,1715457032505,-166.666666,0.00023969,2]
[326825775,1715457032514,-166.666666,0.00024482,2]
[326825777,1715457032523,-6932.80069307,0.00034638,2]
[326825779,1715457032532,-480.05,0.0003489,3]
[326825781,1715457032541,-2000.0,0.00034899,2]
[326825783,1715457032553,-160.0,0.000349,11]
[326825785,1715457032562,-5413.80758958,0.00034976,7]
[326825787,1715457032571,-12491.4,0.00034976,3]
[326825789,1715457032581,-10409.5,0.00034976,3]
[326825791,1715457032590,-10415.78608357,0.00034988,4]
[326825793,1715457032601,-3000.0,0.00034988,2]
[326825795,1715457032610,-3939.4445201,0.00034988,4]
[326825798,1715457032637,-1394.35968628,0.00034988,4]
[326825800,1715457032645,-1018.56416932,0.00034988,4]
[326825802,1715457032654,-35680.73860242,0.00034996,7]
[326825812,1715457034423,3626.77218957,9.999e-05,2]
[326826000,1715457046147,-314.3253547,0.00020912,2]
[326826003,1715457060423,3626.77218957,9.999e-05,2]
[326826012,1715458057627,7156.0206423,0.00015,2]
[326826050,1715458232362,-189.69444695,0.00019635,2]
[326826052,1715458232371,-169.082181,0.00019636,2]
[326826054,1715458232380,-2012.10118066,0.00020811,2]
[326826056,1715458232389,-666.95759845,0.00020812,2]
[326826058,1715458232398,-156.5326781,0.00020812,2]
[326826060,1715458232407,-1147.80069477,0.0002091,2]
[326826062,1715458232417,-154.75239617,0.00020911,2]
[326826064,1715458232425,-95.50400414,0.00020912,2]
[326826066,1715458232434,-816.36499796,0.00020912,2]
[326826068,1715458232443,-491.91161374,0.00020912,2]
[326826069,1715458232452,-830.31176579,0.00020912,2]
[326826072,1715458232461,-2506.65896468,0.00020912,2]
[326826074,1715458232474,-1982.10748891,0.00020912,2]
[326826076,1715458232485,-45700.24202639,0.00020912,2]
[326826078,1715458232494,-287.81738024,0.00020912,2]
[326826080,1715458232504,-3969.8742736,0.00021,2]
[326826082,1715458232513,-3000.0,0.00022,2]
[326826084,1715458232522,-157.755143,0.00023562,2]
[326826086,1715458232531,-168.340322,0.00023562,2]
[326826088,1715458232541,-156.53267806,0.00024333,2]
[326826090,1715458232550,-758.10276031,0.00025,2]
[326826092,1715458232559,-320.02,0.00025194,3]
[326826094,1715458232568,-500.0,0.00025204,2]